[Event "16th HSG Open-A 2022"]
[Site "Hilversum"]
[Date "2022.06.17"]
[Round "1.1"]
[White "Kanis, Sierk"]
[Black "Beerdsen, Thomas"]
[Result "0-1"]
[ECO "A45"]
[WhiteElo "2015"]
[BlackElo "2497"]
[Annotator "TA"]
[PlyCount "96"]
[EventDate "2022.06.17"]
[EventCountry "NED"]
[SourceTitle "playchess.com"]
[Source "ChessBase"]
[SourceQuality "1"]
[TimeControl "6600+10"]

{[%evp 9,95,10,16,-33,-23,-115,45,-117,0,-7,39,-86,81,68,133,0,0,0,0,0,0,-18,0,-18,-3,-12,96,-16,0,-22,-15,-22,-17,-50,-34,-54,-49,-55,-64,-76,-72,-129,-123,-129,-130,-125,-81,-70,0,-64,-64,-78,-90,-150,-151,-164,-106,-180,-177,-172,-178,-263,-102,-98,-99,-90,0,-337,-336,-1603,-1529,-1844,-1760,-1716,-1674,-29969,-29966,-29968,-29963,-29995,-29996,-29996,-29997,-29997,-29998,-29998,-29999,-29999]} 1. d4 {[%emt 0:00:03]} Nf6 {[%emt 0:00:16]} 2. Bf4 {[%emt 0:00:06]} c6 {[%emt 0:00:09]} 3. c4 {[%emt 0:01:58]} Qb6 {[%emt 0:01:00]} 4. Qd2 {[%emt 0:07:10]} Ne4 {[%emt 0:06:07]} 5. Qc2 {[%emt 0:01:13]} d5 {[%emt 0:02:30]} (5... Qxd4 6. e3 Qf6 7. Qxe4 $16) 6. e3 {[%emt 0:01:57] A45: Trompowsky Attack.} (6. f3 $11 {feels stronger.} g5 7. Bc1 (7. Bxb8 Qa5+ 8. Nc3 Nxc3 $11) 7... Qa5+ 8. Nc3) 6... Bf5 $15 {[%emt 0:05:46][%cal Oe4g3]} 7. Bd3 {[%emt 0:02:11] [#]} (7. Qc1 $11 {keeps the balance.}) 7... Nd7 $146 {[%emt 0:09:33]} (7... dxc4 $1 $17 8. Bxe4 Bxe4 9. Qxe4 Qxb2) ({Predecessor:} 7... dxc4 8. Bxe4 Bxe4 9. Qxe4 Qxb2 10. Bxb8 Qc1+ 11. Ke2 Rxb8 12. Nf3 Qxh1 13. Qe5 Rd8 {0-1 (23) Carlsen,M (2864)-Shevchenko,K (2652) Tornelo INT 2022}) 8. Ne2 $2 {[%emt 0:10:37] [#]} (8. Nc3 $14) 8... g5 {[%emt 0:31:24]} (8... dxc4 $1 $17 9. Bxe4 Bxe4 10. Qxe4 Qxb2) 9. Bxg5 $1 $11 {[%emt 0:10:19] [#]} Rg8 {[%emt 0:02:38]} (9... dxc4 $1 $11 10. Bxe4 Bxe4 11. Qxe4 Qxb2) 10. Bh4 {[%emt 0:02:07]} (10. cxd5 $14 {keeps the upper hand.} cxd5 11. Bh4) 10... Rxg2 $2 {[%emt 0:04:05]} (10... Rg4 $17 {keeps the pressure on. Hoping for ...dxc4.} 11. Bg3 dxc4 12. Bxe4 Bxe4) 11. Nbc3 $16 {[%emt 0:06:48]} Nxc3 {[%emt 0:13:14]} (11... Rg4 $14 12. Bg3 (12. cxd5 Rxh4 13. Bxe4 Bxe4 $11) 12... Nxg3 13. Bxf5 Nxf5 14. Qxf5 Rg6) 12. bxc3 {[%emt 0:05:10]} (12. Bxf5 $16 Nxe2 13. Kxe2) 12... Bxd3 $11 {[%emt 0:00:33]} 13. Qxd3 {[%emt 0:00:09]} Rg7 $36 {[%emt 0:04:28][%mdl 2048] Black has good play.} 14. cxd5 {[%emt 0:03:49]} cxd5 {[%emt 0:02:27]} 15. Nf4 {[%emt 0:10:15]} Qc6 {[%emt 0:00:56]} 16. Rb1 {[%emt 0:02:31]} e6 {[%emt 0:04:04]} 17. Ke2 {[%emt 0:02:19]} (17. Kd2 {is interesting.} Rg4 18. Bg3 Rc8 19. Rhc1) 17... Bd6 {[%emt 0:02:02]} (17... Rc8 $11) 18. Nh5 {[%emt 0:01:29]} (18. Rhg1 $16 Rxg1 19. Rxg1) 18... Rg6 {[%emt 0:01:26]} 19. Rhg1 {[%emt 0:05:46]} (19. Bg3 $5 {[%cal Rg3d6]}) 19... Kf8 {[%emt 0:07:27] Prevents Ng7.} 20. Bg3 $1 {[%emt 0:06:22]} Rc8 {[%emt 0:01:21]} 21. Bxd6+ {[%emt 0:04:47]} Qxd6 {[%emt 0:00:06]} 22. Nf4 {[%emt 0:02:34]} Rxg1 {[%emt 0:00:22]} 23. Rxg1 {[%emt 0:00:11]} Nf6 {[%emt 0:00:13]} 24. Qb5 {[%emt 0:07:38]} Rc7 {[%emt 0:02:43]} 25. Qb3 {[%emt 0:04:37] Against Qa3} (25. Qa4 $142) 25... Ne4 $17 {[%emt 0:01:19]} 26. Rc1 {[%emt 0:00:07]} Qa6+ {[%emt 0:01:11]} 27. Ke1 {[%emt 0:02:41]} Qa5 {[%emt 0:01:36][%cal Re4c3]} 28. Ne2 {[%emt 0:00:19]} Qa6 {[%emt 0:01:12]} ({Better is} 28... Nd6 $15) 29. f3 {[%emt 0:01:38]} (29. Nf4 $11) 29... Nd6 $15 {[%emt 0:00:56]} 30. Nf4 {[%emt 0:01:10] Inhibits Qd3.} Rc6 {[%emt 0:00:34][%cal Bc7c6,Bc6b6,Bb6b2][%mdl 32]} 31. Qb1 {[%emt 0:01:34]} ({White should play} 31. Qc2) 31... Qa3 $17 {[%emt 0:00:15] And now ...Rb6 would win.} 32. Ne2 {[%emt 0:00:21]} h5 {[%emt 0:01:05]} (32... Rb6 $1 $19 {[%cal Rb6b1]} 33. Qxh7 Qxa2 34. Qh6+ Ke8) 33. Kf2 {[%emt 0:00:23]} (33. Qh7 $17 {was called for.}) 33... Rb6 $1 $19 {[%emt 0:00:21]} 34. Qh7 {[%emt 0:00:48]} Rb2 {[%emt 0:00:05][%cal Ob2e2]} ({Weaker is} 34... Ke7 35. Rc2 $15) 35. Rc2 {[%emt 0:00:24] [#]} (35. Re1 {was necessary.}) 35... Qxa2 $2 {[%emt 0:00:29] Active counter play!} ({Inferior is} 35... Rxa2 36. Rxa2 Qxa2 37. Qxh5 $17) (35... Ne4+ $1 $19 {[%mdl 512] is more deadly.} 36. fxe4 Rxc2 37. Qh6+ Ke8 38. Qh8+ Ke7) 36. Rxb2 $17 {[%emt 0:00:16]} Qxb2 {[%emt 0:00:03]} 37. Qxh5 $19 {[%emt 0:00:05][%mdl 4096] Endgame KQN-KQN} a5 {[%emt 0:00:34]} ({Black should try} 37... Ke8 $17 38. Qg5 Kd7) 38. h4 $2 {[%emt 0:00:33][%mdl 8192] [#]} (38. e4 $11) 38... a4 $1 {[%emt 0:00:13] White must now prevent ...a3.} 39. Qg5 $2 {[%emt 0:02:25]} (39. Qh8+ Ke7 40. Qb8) 39... a3 {[%emt 0:00:25] Threatens to win with ...a2.} 40. h5 {[%emt 0:00:01]} a2 {[%emt 0:00:20]} 41. h6 {[%emt 0:00:04]} Qb1 {[%emt 0:00:40]} 42. Qg7+ {[%emt 0:01:05]} Ke7 {[%emt 0:00:03] Black mates.} 43. h7 {[%emt 0:00:09]} a1=Q {[%emt 0:00:04]} 44. h8=Q {[%emt 0:00:25]} Qe1+ {[%emt 0:00:03]} 45. Kg2 {[%emt 0:00:06]} Qxe2+ {[%emt 0:00:03]} 46. Kh3 {[%emt 0:00:36]} Qh1+ {[%emt 0:00:03]} 47. Kg4 {[%emt 0:00:17]} Qexf3+ {[%emt 0:00:02]} 48. Kg5 {[%emt 0:00:05]} Ne4# {[%emt 0:00:03] Weighted Error Value: White=0.80/Black=0.32} 0-1

[Event "16th HSG Open-A 2022"]
[Site "Hilversum"]
[Date "2022.06.17"]
[Round "1.2"]
[White "Pijpers, Arthur"]
[Black "Noordhoff, Enno"]
[Result "1-0"]
[ECO "B28"]
[WhiteElo "2463"]
[BlackElo "2026"]
[Annotator "TA"]
[PlyCount "55"]
[EventDate "2022.06.17"]
[EventCountry "NED"]
[SourceTitle "playchess.com"]
[Source "ChessBase"]
[SourceQuality "1"]
[TimeControl "6600+10"]

{[%evp 10,55,58,57,43,56,62,62,102,87,93,91,86,92,100,74,76,77,81,76,99,74,102,104,114,104,106,90,95,49,363,370,364,368,361,357,376,338,580,557,530,402,802,744,797,790,1083,1063]} 1. e4 {[%emt 0:00:03]} c5 {[%emt 0:03:12]} 2. Nf3 {[%emt 0:00:05][%cal Bg1f3,Bf3d4,Bd4f5][%mdl 32]} a6 {[%emt 0:00:19]} 3. Nc3 {[%emt 0:00:26]} Nc6 {[%emt 0:05:29]} 4. d4 {[%emt 0:02:00]} cxd4 {[%emt 0:00:48]} 5. Nxd4 {[%emt 0:00:05]} e5 {[%emt 0:00:28]} 6. Nf5 {[%emt 0:02:47]} d6 {[%emt 0:03:14] B28: Sicilian: 2 Nf3 a6 (O'Kelly Variation).} 7. Bc4 {[%emt 0:15:43]} g6 {[%emt 0:10:43]} 8. Ne3 {[%emt 0:00:11] White is much more active.} ({But not} 8. Qd5 $2 Be6 9. Qd3 Nb4 $19) 8... Nf6 {[%emt 0:00:29] White is slightly better.} 9. Ned5 {[%emt 0:02:05]} Nxd5 {[%emt 0:01:10]} 10. Nxd5 {[%emt 0:00:22] aiming for Be3.} ({Avoid the trap} 10. Qxd5 $2 Be6 11. Qd3 Nb4 $19) 10... b5 {[%emt 0:05:43]} 11. Bb3 {[%emt 0:01:42]} Bg7 {[%emt 0:00:56] [#]} 12. c3 $146 {[%emt 0:09:42]} ({Predecessor:} 12. Be3 O-O 13. O-O Nd4 14. Bxd4 exd4 15. Qd3 Kh8 16. a4 bxa4 17. Rxa4 Rb8 18. Rb4 Rxb4 19. Nxb4 {½-½ (44) Klein,F (2148)-Karimi,F (2204) Germany 2005}) 12... O-O {[%emt 0:09:15]} 13. h4 {[%emt 0:00:05][%cal Bh2h4,Bh4h5][%mdl 32] [#] Bg5 is the strong threat.} h6 {[%emt 0:23:47] Against Bg5} 14. Be3 {[%emt 0:01:46]} Be6 {[%emt 0:06:48]} 15. a4 {[%emt 0:13:43]} Rb8 {[%emt 0:06:22]} 16. axb5 {[%emt 0:01:01]} axb5 {[%emt 0:00:11]} 17. h5 {[%emt 0:09:15] [#] Strongly threatening hxg6.} g5 {[%emt 0:03:20]} 18. Ra6 {[%emt 0:00:08]} Na5 {[%emt 0:30:56]} 19. Ba2 {[%emt 0:00:06]} (19. Bb6 $16 Rxb6 20. Rxa5) 19... Bc8 $2 {[%emt 0:00:00][%mdl 8192] Loses the game.} ({Better is} 19... Nc4 $14) 20. Bb6 $18 {[%emt 0:02:03]} Bxa6 {[%emt 0:00:00]} 21. Bxd8 {[%emt 0:00:06]} Rbxd8 {[%emt 0:00:00]} 22. Ne7+ {[%emt 0:02:54]} Kh7 {[%emt 0:00:00]} 23. Bd5 {[%emt 0:00:46]} Nb7 $2 {[%emt 0:00:00]} (23... Nc4 24. Qb3 Rd7) 24. b4 {[%emt 0:01:44]} Rd7 {[%emt 0:00:00]} 25. Nf5 {[%emt 0:00:43]} Rc8 {[%emt 0:00:00]} (25... Nd8 $142 26. Qa1 Bc8) 26. Qa1 {[%emt 0:03:04] White is clearly winning.} Ra8 {[%emt 0:00:00]} 27. c4 {[%emt 0:03:52]} Rdd8 {[%emt 0:00:00]} 28. Rh3 {[%emt 0:00:43] Weighted Error Value: White=0.15 (very precise) /Black=0.47} 1-0

[Event "16th HSG Open-A 2022"]
[Site "Hilversum"]
[Date "2022.06.17"]
[Round "1.3"]
[White "Verkooyen, Frank"]
[Black "Gilmanov, Mansur"]
[Result "0-1"]
[ECO "A84"]
[WhiteElo "2024"]
[BlackElo "2390"]
[Annotator "TA"]
[PlyCount "130"]
[EventDate "2022.06.17"]
[EventCountry "NED"]
[SourceTitle "playchess.com"]
[Source "ChessBase"]
[SourceQuality "1"]
[TimeControl "6600+10"]

{[%evp 9,130,44,47,39,36,35,35,33,33,33,28,22,27,19,49,21,24,18,19,4,35,0,0,0,0,0,0,0,0,0,0,-20,-14,-10,-7,-20,0,0,0,0,0,0,0,0,0,3,24,12,283,0,0,0,0,-15,-13,-164,-150,-204,-188,-205,-121,-148,-133,-150,-97,-123,-110,-143,-59,-59,-52,-83,-86,-186,-175,-172,-173,-639,-630,-710,-292,-309,-302,-293,-283,-227,-207,-261,-221,-211,-137,-147,-147,-147,-147,-278,-179,-326,-278,-541,-511,-511,-511,-490,-465,-506,-490,-707,-603,-4821,-1402,-4133,-5073,-5726,-5714,-4137,-2446,-1495,-821,-29971,-29972,-29976,-29976]} 1. d4 {[%emt 0:02:50]} d5 {[%emt 0:00:29]} 2. c4 {[%emt 0:00:08]} e6 {[%emt 0:00:34]} 3. Nc3 {[%emt 0:00:12]} f5 {[%emt 0:00:06]} 4. cxd5 {[%emt 0:02:18]} exd5 {[%emt 0:00:05]} 5. Bf4 {[%emt 0:00:23]} Nf6 {[%emt 0:01:05]} 6. e3 {[%emt 0:00:14] A84: Dutch Defence: 2 c4 Miscellaneous.} Bd6 {[%emt 0:01:00]} 7. Bxd6 {[%emt 0:02:04]} Qxd6 {[%emt 0:00:12]} 8. Bd3 {[%emt 0:00:09] White is slightly better.} O-O {[%emt 0:00:48]} 9. Nge2 {[%emt 0:00:53]} c6 {[%emt 0:04:28]} 10. Qc2 {[%emt 0:01:18]} Ne4 {[%emt 0:01:38] [#]} 11. O-O $146 {[%emt 0:01:48]} (11. Bxe4 fxe4 12. Nf4 Nd7 $15) ({Predecessor:} 11. Qb3 Qe7 12. Rf1 b6 13. O-O-O Ba6 14. Bxa6 Nxa6 15. Kb1 Nc7 16. Qc2 Qd7 17. f3 {1-0 (45) Yoshioka,H (1666)-Dias,M (1722) Sao Paulo 2016}) 11... Be6 {[%emt 0:05:57]} 12. Rad1 {[%emt 0:04:36]} ({Much worse is} 12. Bxe4 fxe4 13. Qb3 b6 $11) 12... Nd7 {[%emt 0:02:05]} 13. f3 {[%emt 0:06:17]} Nxc3 {[%emt 0:00:50]} 14. bxc3 {[%emt 0:00:13]} Rae8 {[%emt 0:00:34]} 15. Ng3 {[%emt 0:03:33][%cal Rg3f5]} g6 {[%emt 0:07:13]} 16. e4 {[%emt 0:04:58]} fxe4 {[%emt 0:08:59]} 17. fxe4 {[%emt 0:00:08]} dxe4 {[%emt 0:00:35]} 18. Nxe4 {[%emt 0:01:37]} Qd5 {[%emt 0:00:24]} 19. Qb2 {[%emt 0:24:29]} c5 {[%emt 0:23:15]} 20. Nf2 {[%emt 0:13:06]} cxd4 {[%emt 0:04:57]} 21. cxd4 {[%emt 0:01:40]} Nf6 {[%emt 0:04:29]} 22. Rd2 {[%emt 0:04:04]} Qg5 {[%emt 0:06:18]} 23. Re2 {[%emt 0:08:32]} Bd5 {[%emt 0:14:02][%csl Gd5][%cal Rg5g2]} 24. Nh3 {[%emt 0:00:53]} Rxe2 {[%emt 0:10:52]} 25. Qxe2 {[%emt 0:00:11]} Qh5 {[%emt 0:01:15]} 26. Qe7 {[%emt 0:09:25]} Rf7 $40 {[%emt 0:00:45][%mdl 128] Black mounts an attack.} (26... Qg4 $5 27. Nf4 Bxa2 $14) 27. Qd6 {[%emt 0:03:43]} Qg4 {[%emt 0:05:10][%csl Gd5][%cal Rg4g2]} 28. Nf4 {[%emt 0:03:51]} Kg7 $2 {[%emt 0:00:54][%mdl 8192]} 29. Be2 $2 {[%emt 0:04:32]} (29. Qe5 $18 Bxa2 30. d5) 29... Qd7 $1 $11 {[%emt 0:00:52]} 30. Qe5 {[%emt 0:02:01]} Bxa2 {[%emt 0:00:51]} 31. Nd3 {[%emt 0:02:53]} Qe7 {[%emt 0:00:34]} 32. Nc5 $2 {[%emt 0:00:41]} (32. Ra1 $11 {and White has nothing to worry.} Bc4 33. Rxa7) 32... b6 $19 {[%emt 0:00:51]} 33. Nd3 {[%emt 0:00:30]} (33. Na6 $17) 33... Qxe5 {[%emt 0:01:08]} 34. dxe5 {[%emt 0:00:02]} Ne8 {[%emt 0:00:48]} (34... Ne4 $19 35. Ra1 Be6) 35. Rc1 {[%emt 0:00:25]} Rc7 {[%emt 0:00:19]} 36. Ra1 {[%emt 0:00:13]} Bc4 {[%emt 0:00:31] Black is more active.} (36... Bg8 $142 37. Kf2 a5) 37. Kf2 {[%emt 0:00:05]} Kf7 {[%emt 0:00:12]} 38. Ke3 {[%emt 0:00:10]} Re7 {[%emt 0:00:29]} ({Better is} 38... a5 $17 39. Nf4 Bxe2 40. Nxe2 Rc5 41. Rf1+ Ke7) 39. Kd4 $15 {[%emt 0:00:07]} Be6 {[%emt 0:00:11]} 40. Rf1+ {[%emt 0:00:04] [#]} Kg7 $1 {[%emt 0:00:01]} 41. Nb4 {[%emt 0:00:17]} (41. Nf4 $17 {might work better.}) 41... Rd7+ {[%emt 0:00:04]} 42. Ke3 {[%emt 0:00:07]} Nc7 {[%emt 0:00:02] Inhibits Bb5.} 43. Rf6 $2 {[%emt 0:00:26]} (43. Bd3) 43... a5 $19 {[%emt 0:00:08]} 44. Bb5 {[%emt 0:00:02]} axb4 {[%emt 0:00:30]} (44... Nxb5 $142 45. Rxe6 axb4 46. Rxb6 Nc3) 45. Bxd7 {[%emt 0:00:21]} Bxd7 {[%emt 0:00:01]} 46. Rd6 {[%emt 0:00:09] [#] Against Nd5+} Bf5 {[%emt 0:00:23] Hoping for ...b3.} 47. Kd2 {[%emt 0:00:08]} b5 {[%emt 0:00:19]} 48. Rb6 {[%emt 0:00:12]} b3 {[%emt 0:00:14]} 49. Kc1 {[%emt 0:00:08]} ({Don't blunder} 49. Rb7 $2 b2 50. Rxc7+ Kh6 $19) 49... Ne6 {[%emt 0:00:11]} 50. Rxb5 {[%emt 0:00:11]} Bc2 {[%emt 0:00:14] White must now prevent ...h5.} 51. Rb7+ {[%emt 0:00:21]} Kh6 {[%emt 0:00:11]} 52. Rb6 {[%emt 0:00:09]} (52. h4 $17 {was worth a try.}) 52... Nc5 {[%emt 0:00:07]} 53. Kd2 {[%emt 0:00:20]} (53. Rb5 $142 Nd3+ 54. Kd2) 53... Kg5 {[%emt 0:00:08]} 54. Rc6 $2 {[%emt 0:00:31]} (54. g4 {is the only way for White.}) 54... Ne4+ {[%emt 0:00:13]} ({Wrong is} 54... Nd3 $2 55. Rc7 $19) 55. Kc1 {[%emt 0:00:11]} Kf5 {[%emt 0:00:03]} 56. e6 {[%emt 0:00:06] Threatens to win with e7.} Kf6 {[%emt 0:00:08]} 57. g4 {[%emt 0:00:07]} Ng5 {[%emt 0:00:12]} 58. h4 {[%emt 0:00:07]} (58. e7+ $142 Kxe7 59. Rb6) 58... Nxe6 {[%emt 0:00:03] Strongly threatening ...Ke5.} 59. g5+ {[%emt 0:00:02]} Ke5 {[%emt 0:00:03] ...Kd5 is the strong threat.} 60. Rb6 {[%emt 0:00:03]} Nc5 {[%emt 0:00:08]} 61. Rb8 {[%emt 0:00:18]} Kd4 {[%emt 0:00:14]} 62. Kd2 {[%emt 0:00:05]} Bf5 {[%emt 0:00:10] ( -> ...Kc4)} 63. Rb4+ {[%emt 0:00:05]} Kd5 {[%emt 0:00:04]} 64. Rb8 {[%emt 0:00:05]} Kc4 {[%emt 0:00:03]} 65. Kc1 {[%emt 0:00:12]} Kc3 {[%emt 0:00:08] Weighted Error Value: White=0.87/Black=0.34} 0-1

[Event "16th HSG Open-A 2022"]
[Site "Hilversum"]
[Date "2022.06.17"]
[Round "1.4"]
[White "Roebers, Eline"]
[Black "Gijsen, William"]
[Result "1-0"]
[ECO "B42"]
[WhiteElo "2369"]
[BlackElo "2030"]
[Annotator "TA"]
[PlyCount "55"]
[EventDate "2022.06.17"]
[EventCountry "NED"]
[SourceTitle "playchess.com"]
[Source "ChessBase"]
[SourceQuality "1"]
[TimeControl "6600+10"]

{[%evp 12,55,35,33,60,24,36,0,39,22,49,41,36,35,62,1,0,16,14,-21,-22,-27,0,0,33,20,22,23,37,25,29,39,42,18,88,92,147,168,284,255,956,948,29992,29993,29994,29995]} 1. e4 {[%emt 0:00:02]} c5 {[%emt 0:00:05]} 2. Nf3 {[%emt 0:00:03]} e6 {[%emt 0:00:04]} 3. d4 {[%emt 0:00:03]} cxd4 {[%emt 0:00:05]} 4. Nxd4 {[%emt 0:00:03]} a6 {[%emt 0:00:11]} 5. Bd3 {[%emt 0:00:03]} Bc5 {[%emt 0:00:07]} 6. Nb3 {[%emt 0:00:05]} Ba7 {[%emt 0:00:05]} 7. O-O {[%emt 0:01:16]} d6 {[%emt 0:00:59] B42: Sicilian: Kan Variation: 5 Bd3.} 8. Nc3 {[%emt 0:15:29]} (8. Qg4 $5 {[%cal Rg4g7]}) 8... Nf6 {[%emt 0:06:55]} 9. Qe2 {[%emt 0:00:51]} Qc7 {[%emt 0:03:59] The position is equal.} 10. Kh1 {[%emt 0:01:57]} Nbd7 {[%emt 1:39:20]} 11. f4 {[%emt 0:01:54]} b5 {[%emt 0:00:00] [#]} 12. a4 $146 {[%emt 0:07:19]} ({Predecessor:} 12. Bd2 Bb7 13. Rae1 e5 14. a4 b4 15. Nd5 Nxd5 16. exd5 a5 17. fxe5 Nxe5 18. Bb5+ {1-0 (30) Zufic,M (2321)-Feletar,D (2420) Zadar 2002}) 12... b4 {[%emt 0:00:00]} 13. Nd1 {[%emt 0:00:11]} (13. Na2 $14) 13... O-O {[%emt 0:00:00]} 14. Bd2 {[%emt 0:02:33]} Rb8 {[%emt 0:00:00]} 15. Nf2 {[%emt 0:11:36]} e5 {[%emt 0:00:00]} 16. Rac1 {[%emt 0:04:17]} Qd8 {[%emt 0:00:00]} (16... exf4 {is more complex.} 17. Ng4 Nxg4 18. Qxg4 Ne5) 17. fxe5 {[%emt 0:07:50]} dxe5 {[%emt 0:00:00]} 18. Bg5 {[%emt 0:01:07]} h6 {[%emt 0:00:00]} 19. Bh4 {[%emt 0:01:49]} Qb6 {[%emt 0:00:00]} 20. Nd2 {[%emt 0:03:05]} Qe3 {[%emt 0:00:00]} 21. Qd1 {[%emt 0:02:13]} Qc5 {[%emt 0:00:00]} 22. Bc4 {[%emt 0:03:00]} Bb7 {[%emt 0:00:00]} (22... Qc7 $11) 23. Ng4 $16 {[%emt 0:06:19]} Nxg4 {[%emt 0:00:00]} (23... Nxe4 $142 24. Nxh6+ gxh6 25. Qg4+ Kh8 26. Qxd7 Rfd8 27. Nxe4 (27. Bxd8 $2 {gets mated.} Qg1+ 28. Rxg1 Nf2#) 27... Rxd7 28. Nxc5 Bxc5) 24. Qxg4 {[%emt 0:00:05]} Qd6 {[%emt 0:00:00]} (24... Qc8 $142) 25. Rcd1 $40 {[%emt 0:01:02][%mdl 128] White wants a kill.} Nc5 $2 {[%emt 0:00:00]} (25... Qc7 26. Be7 Be3) 26. Bf6 {[%emt 0:00:32][%csl Gf6][%cal Rg4g7] [#]} g5 {[%emt 0:00:00]} 27. Qh5 {[%emt 0:00:15][%cal Rh5g6]} Kh7 {[%emt 0:00:00]} 28. Bxf7 {[%emt 0:00:06] Weighted Error Value: White=0.13 (very precise) /Black=0.48} 1-0

[Event "16th HSG Open-A 2022"]
[Site "Hilversum"]
[Date "2022.06.17"]
[Round "1.5"]
[White "Markus, John Raymond"]
[Black "Harff, Marcel"]
[Result "0-1"]
[ECO "A46"]
[WhiteElo "2019"]
[BlackElo "2336"]
[Annotator "TA"]
[PlyCount "86"]
[EventDate "2022.06.17"]
[EventCountry "NED"]
[SourceTitle "playchess.com"]
[Source "ChessBase"]
[SourceQuality "1"]
[TimeControl "6600+10"]

{[%evp 9,86,-7,-4,-14,-18,-19,-19,-45,-15,-37,207,6,25,-47,-29,-36,-37,-29,-45,-149,-155,-163,-152,-163,-164,-148,-152,-152,-144,-127,-119,-140,-100,-101,-90,-94,-96,-192,-181,-262,-256,-264,-269,-306,-298,-291,-287,-312,-296,-318,-334,-350,-341,-391,-394,-379,-371,-458,-441,-458,-456,-558,-557,-556,-537,-528,-516,-503,-481,-487,-437,-743,-753,-769,-768,-870,-839,-1018,-975]} 1. d4 {[%emt 0:00:04]} Nf6 {[%emt 0:00:09]} 2. Nf3 {[%emt 0:00:22]} e6 {[%emt 0:00:11]} 3. Bg5 {[%emt 0:00:26]} c5 {[%emt 0:00:21]} 4. e3 {[%emt 0:00:28]} Qb6 {[%emt 0:00:33]} 5. Bxf6 {[%emt 0:00:28]} gxf6 {[%emt 0:00:13]} 6. Nbd2 {[%emt 0:00:27] A46: 1 d4 Nf6 2 Nf3 e6: Torre, London and Colle Systems.} cxd4 {[%emt 0:01:47]} 7. exd4 {[%emt 0:00:43]} Qxb2 {[%emt 0:01:08]} 8. Bd3 {[%emt 0:02:45] The position is equal.} Nc6 {[%emt 0:01:32]} 9. O-O {[%emt 0:08:00]} Nb4 $2 {[%emt 0:03:18]} (9... Nxd4 $15 {keeps the upper hand.} 10. Rb1 Nxf3+ 11. Qxf3 Qd4) 10. Rb1 $2 {[%emt 0:06:55]} (10. Nc4 $18 Qc3 11. Rb1 Nxa2 12. Rb3) 10... Qa3 $11 {[%emt 0:00:12]} 11. Bc4 {[%emt 0:13:20] [#]} (11. Rb3 $11 Qa5 12. Ne4) 11... d5 $146 {[%emt 0:03:28][%mdl 2048] Black has good play.} ({Predecessor:} 11... b6 12. Rb3 Qa5 13. a3 Nd5 14. Ne4 Be7 15. Nfd2 Nc7 16. Qf3 d5 17. Nxf6+ Kd8 {½-½ (51) Granados Gomez,M (2408)-Zlotnik,B (2419) Barcelona 2000}) 12. Bb5+ {[%emt 0:00:41]} Kd8 {[%emt 0:00:14]} 13. c3 {[%emt 0:10:10]} a6 {[%emt 0:01:00]} (13... Qxc3 14. Qa4 $14) 14. Be2 {[%emt 0:05:11]} ({Better is} 14. Rb3 $1 $15 Qxa2 15. Be2) 14... Qxc3 $17 {[%emt 0:00:33]} ({Not} 14... Nxa2 15. Rb3 Nxc3 16. Rxa3 Nxd1 17. Rb3 $11) 15. Qa4 {[%emt 0:01:02] Strongly threatening Rfc1.} Bd7 {[%emt 0:00:19]} 16. Qa5+ {[%emt 0:01:24] [#]} Qc7 $1 {[%emt 0:00:03]} 17. Qa3 {[%emt 0:01:51]} Nc6 {[%emt 0:00:13]} 18. Qb2 {[%emt 0:01:27]} Rb8 {[%emt 0:02:09]} 19. Nb3 {[%emt 0:02:20]} Bd6 {[%emt 0:07:43]} 20. Rfc1 {[%emt 0:00:41]} Ke7 {[%emt 0:00:25]} 21. Nc5 {[%emt 0:02:04]} Bxc5 {[%emt 0:00:31]} 22. Rxc5 {[%emt 0:00:29]} Qd6 {[%emt 0:00:39]} 23. Qb6 {[%emt 0:02:16]} (23. Qd2 $17) 23... Rhc8 $19 {[%emt 0:00:28][%cal Oc6d4] [#] White must now prevent ...Nxd4!} 24. Kf1 {[%emt 0:01:28]} (24. Rcc1 $142) 24... Nd8 {[%emt 0:02:24]} 25. Qxd6+ {[%emt 0:03:18]} Kxd6 {[%emt 0:00:03]} 26. Rb6+ {[%emt 0:00:46]} Rc6 {[%emt 0:00:08]} 27. Rcxc6+ {[%emt 0:01:15]} Nxc6 {[%emt 0:00:21]} (27... Bxc6 $2 {too greedy.} 28. g3 $19 (28. Bxa6 $2 Kc7 $19)) 28. Ke1 {[%emt 0:00:57]} h6 {[%emt 0:00:58]} 29. Kd2 {[%emt 0:00:25]} e5 {[%emt 0:00:06]} 30. dxe5+ {[%emt 0:01:57]} fxe5 {[%emt 0:00:08]} 31. g3 {[%emt 0:02:16]} Kc5 {[%emt 0:01:01]} 32. Rb1 {[%emt 0:00:52]} b5 {[%emt 0:00:09]} 33. a3 {[%emt 0:02:28]} a5 {[%emt 0:00:45][%cal Ba6a5,Ba5b4][%mdl 32] Black is clearly winning.} 34. Rc1+ {[%emt 0:00:47]} Kd6 {[%emt 0:00:05]} 35. Rb1 {[%emt 0:01:28]} b4 {[%emt 0:00:09]} 36. axb4 {[%emt 0:00:22]} Rxb4 {[%emt 0:00:12]} 37. Rxb4 {[%emt 0:01:58]} axb4 {[%emt 0:00:11][%mdl 4096] Endgame KBN-KBN} 38. Ne1 {[%emt 0:02:18]} Nd4 {[%emt 0:02:26]} 39. Bd1 {[%emt 0:00:19]} Bb5 {[%emt 0:00:31]} 40. f4 {[%emt 0:01:49]} (40. Ng2 $142) 40... e4 {[%emt 0:00:22]} 41. g4 {[%emt 0:00:16]} Ne6 {[%emt 0:02:21]} 42. f5 {[%emt 0:02:45]} Nd4 {[%emt 0:01:07]} 43. Ng2 {[%emt 0:02:20]} Nf3+ {[%emt 0:00:34] Weighted Error Value: White=0.47/Black=0.15 (very precise)} 0-1